{"text_format":"1","workbook":"xlsx","n_sheets":5,"sheets":["Реестр","Котлован 1","Демонтаж 1","ПГС 1","Котлован 2"],"not_rendered":{"charts":0,"images":0,"macros":1,"external_links":0,"defined_names":0,"comments":0,"pivot_tables":0},"unopened":[],"bounds":{"document_bytes":16777216,"sheet_cells":100000,"rows_first":2000,"rows_last":500,"rows_between":2000,"halvings":0,"cell_chars":16384,"cell_head_chars":4096},"cells_cut":0,"cells_raw":0,"read":"whole","date_system":"1900"}

{"sheet":"Реестр","index":0,"n_rows":4,"n_cols":2,"rows_kept":4,"cut":false,"hidden":false,"merged":[]}
["АКТ освидетельствования скрытых работ  № 011/02/16-01 ОРУ 500 кВ, разъединитель Р-2Т- 570. Устройство котлованов под фундаменты ФМ-1.","2016-07-13"]
["АКТ освидетельствования скрытых работ  № 011/02/16-02 ОРУ 500 кВ, разъединитель Р-2Т- 570. Демонтаж свай бетонных.","2016-07-17"]
["АКТ освидетельствования скрытых работ  № 011/02/16-03 ОРУ 500 кВ, разъединитель Р-2Т- 570. Устройство подстилающего слоя из ПГС.","2016-07-20"]
["АКТ освидетельствования скрытых работ  № 011/02/16-06 ОРУ 500 кВ, разъединитель Р-2Т. Устройство котлованов под фундаменты ФМ-1.","2016-08-02"]

{"sheet":"Котлован 1","index":1,"n_rows":146,"n_cols":30,"rows_kept":146,"cut":false,"hidden":false,"merged":[[141,0,141,29],[142,0,142,29],[143,0,143,29],[144,0,144,29],[145,0,145,29],[137,0,137,8],[137,9,137,29],[138,0,139,8],[138,9,138,29],[139,9,139,29],[140,0,140,29],[132,0,132,29],[133,0,133,29],[134,0,134,8],[134,9,134,29],[135,0,135,29],[136,0,136,29],[127,0,127,29],[128,0,128,29],[129,0,129,29],[130,0,130,24],[130,25,130,29],[131,0,131,29],[122,0,122,29],[123,0,123,17],[123,18,123,29],[124,0,124,29],[125,0,125,29],[126,0,126,29],[117,0,117,29],[118,0,118,29],[119,0,119,29],[120,0,120,13],[120,14,120,29],[121,0,121,29],[114,0,114,5],[114,6,114,9],[114,10,114,29],[115,0,115,29],[116,0,116,4],[116,5,116,29],[109,0,109,29],[110,0,110,29],[111,0,111,29],[112,0,112,8],[112,9,112,29],[113,0,113,29],[103,0,103,29],[104,0,104,29],[105,0,105,29],[106,0,106,29],[107,0,107,29],[108,0,108,15],[108,16,108,29],[100,0,100,7],[100,13,100,16],[100,18,100,20],[101,0,101,29],[102,0,102,14],[102,15,102,29],[95,0,95,29],[96,0,96,29],[97,0,97,29],[98,0,98,29],[99,0,99,7],[99,13,99,16],[99,18,99,20],[90,0,90,29],[91,0,91,29],[92,0,92,29],[93,0,93,29],[94,0,94,4],[94,5,94,29],[85,0,85,29],[86,0,86,29],[87,0,87,29],[88,0,88,29],[89,0,89,12],[89,13,89,29],[81,0,81,18],[81,19,81,29],[82,0,82,29],[83,0,83,29],[84,0,84,16],[84,17,84,29],[76,0,76,29],[77,0,77,12],[77,13,77,29],[78,0,78,29],[79,0,79,29],[80,0,80,29],[71,0,71,29],[72,0,72,22],[72,23,72,29],[73,0,73,29],[74,0,74,29],[75,0,75,29],[66,0,66,29],[67,0,67,29],[68,0,68,29],[69,0,69,8],[69,9,69,29],[70,0,70,29],[62,0,62,3],[62,4,62,29],[63,0,63,29],[64,0,64,29],[65,0,65,24],[65,25,65,29],[57,0,57,17],[57,18,57,29],[58,0,58,29],[59,0,59,29],[60,0,60,29],[61,0,61,29],[53,0,53,29],[54,0,54,29],[55,0,55,19],[55,20,55,29],[56,0,56,19],[56,20,56,29],[49,0,49,29],[50,1,50,6],[50,23,50,26],[50,28,50,29],[51,0,51,29],[52,0,52,13],[52,14,52,29],[43,0,43,29],[44,0,44,29],[45,0,45,29],[46,0,46,29],[47,0,47,29],[48,0,48,29],[38,0,38,29],[39,0,39,7],[39,8,39,29],[40,0,40,29],[41,0,41,29],[42,0,42,29],[32,0,32,29],[33,0,33,29],[34,0,34,29],[35,0,35,29],[36,0,36,29],[37,0,37,29],[27,0,27,29],[28,0,28,29],[29,0,29,29],[30,0,30,29],[31,0,31,19],[31,20,31,29],[22,0,22,29],[23,0,23,12],[23,13,23,29],[24,0,24,29],[25,0,25,29],[26,0,26,29],[0,0,0,29],[17,0,17,8],[17,9,17,29],[18,0,18,29],[19,0,19,29],[20,0,20,29],[21,0,21,29],[13,0,13,11],[13,12,13,29],[14,0,14,29],[15,0,15,29],[16,0,16,29]]}
[{"$f":"CONCATENATE($A$48,\" \",$A$49,\" \",$A$51,\" \",$B$51,\" \",$T$82,\" \",$A$83)","v":"АКТ освидетельствования скрытых работ  № 011/02/16-01 ОРУ 500 кВ, разъединитель Р-2Т- 570. Устройство котлованов под фундаменты ФМ-1."}]
[null,null,null,null,null,null,null,null,null,null,null,null,null,null,null,null,null,null,null,null,null,null,null,null,null,null,null,null,null," ПРИЛОЖЕНИЕ № 3"]
[null,null,null,null,null,null,null,null,null,null,null,null,null,null,null,null,null,null,null,null,null,null,null,null,null,null,null,null,null,"к Требованиям к составу и порядку ведения исполнительной "]
[null,null,null,null,null,null,null,null,null,null,null,null,null,null,null,null,null,null,null,null,null,null,null,null,null,null,null,null,null,"документации при строительстве, реконструкции, "]
[null,null,null,null,null,null,null,null,null,null,null,null,null,null,null,null,null,null,null,null,null,null,null,null,null,null,null,null,null,"капитальном ремонте объектов капитального строительства "]
[null,null,null,null,null,null,null,null,null,null,null,null,null,null,null,null,null,null,null,null,null,null,null,null,null,null,null,null,null,"и требования, предъявляемые к актам освидетельствования "]
[null,null,null,null,null,null,null,null,null,null,null,null,null,null,null,null,null,null,null,null,null,null,null,null,null,null,null,null,null,"работ, конструкций, участков сетей инженерно-"]
[null,null,null,null,null,null,null,null,null,null,null,null,null,null,null,null,null,null,null,null,null,null,null,null,null,null,null,null,null,"технического обеспечения, утвержденным "]
[null,null,null,null,null,null,null,null,null,null,null,null,null,null,null,null,null,null,null,null,null,null,null,null,null,null,null,null,null,"приказом Федеральной службы по экологическому, "]
[null,null,null,null,null,null,null,null,null,null,null,null,null,null,null,null,null,null,null,null,null,null,null,null,null,null,null,null,null,"технологическому и атомному надзору "]
[null,null,null,null,null,null,null,null,null,null,null,null,null,null,null,null,null,null,null,null,null,null,null,null,null,null,null,null,null,"от  26 декабря 2006 г. № 1128 "]
[]
[]
["Объект капитального строительства",null,null,null,null,null,null,null,null,null,null,null,"Филиал ПАО «Иркутскэнерго» Братская ГЭС."]
["Модернизация ячеек ОРУ-500 кВ с заменой разъединителей 500 кВ на Братской ГЭС"]
["по договору 011/02/16"]
["(наименование, почтовый или строительный адрес объекта капитального строительства)"]
["Застройщик или заказчик",null,null,null,null,null,null,null,null,"Иркутское ПАО энергетики и электрификации "]
["                                                                                    (наименование, номер и дата выдачи свидетельства "]
["текст"]
["о государственной регистрации, ОГРН, ИНН, почтовые реквизиты, телефон/факс – для  юридических лиц"]
["текст"]
["фамилия, имя, отчество, паспортные данные, место проживания, телефон/факс – для физических лиц)"]
["Лицо, осуществляющее строительство",null,null,null,null,null,null,null,null,null,null,null,null,"текст"]
["                                                                                      (наименование, номер и дата выдачи свидетельства"]
["текст"]
["о государственной регистрации, ОГРН, ИНН, почтовые реквизиты, телефон/факс – для  юридических лиц;"]
["текст"]
["фамилия, имя, отчество, паспортные данные, место проживания, телефон/факс – для физических лиц)"]
["текст"]
[]
["Лицо, осуществляющее подготовку проектной документации",null,null,null,null,null,null,null,null,null,null,null,null,null,null,null,null,null,null,null,"нет"]
[]
["(наименование, номер и дата выдачи свидетельства "]
[]
["о государственной регистрации, ОГРН, ИНН, почтовые реквизиты, телефон/факс – для  юридических лиц;"]
[]
["фамилия, имя, отчество, паспортные данные, место проживания, телефон/факс – для физических лиц)"]
["Лицо, осуществляющее строительство, выполнившее работы, подлежащие"]
["освидетельствованию",null,null,null,null,null,null,null,"текст"]
["                                                                         (наименование, номер и дата выдачи свидетельства"]
["текст"]
["о государственной регистрации, ОГРН, ИНН, почтовые реквизиты, телефон/факс – для  юридических лиц; "]
["текст"]
["фамилия, имя, отчество, паспортные данные, место проживания, телефон/факс – для физических лиц)"]
["текст"]
[]
["АКТ"]
["освидетельствования скрытых работ "]
[]
["№","011/02/16-01",null,null,null,null,null,null,null,null,null,null,null,null,null,null,null,null,null,"«",{"$f":"K101","v":"13"},"»   ",null,{"$f":"N101","v":"июля"},null,null,null,null,{"$f":"S101","v":"2016г."}]
[]
["Представитель застройщика или заказчика",null,null,null,null,null,null,null,null,null,null,null,null,null,"Инженер "]
[]
["(должность, фамилия, инициалы, реквизиты документа о представительстве)"]
[]
[]
["Представитель лица, осуществляющего строительство",null,null,null,null,null,null,null,null,null,null,null,null,null,null,null,null,null,"Начальник Гидротехнического "]
["цеха Братского участка"]
[]
["(должность, фамилия, инициалы, реквизиты документа о представительстве)"]
["Представитель лица, осуществляющего строительство, по вопросам строительного"]
["контроля",null,null,null,"нет"]
[]
["(должность, фамилия, инициалы, реквизиты документа о представительстве)"]
["Представитель лица, осуществляющего подготовку проектной документации",null,null,null,null,null,null,null,null,null,null,null,null,null,null,null,null,null,null,null,null,null,null,null,null,"нет"]
[]
["(должность, фамилия, инициалы, реквизиты документа о представительстве)"]
["Представитель лица, осуществляющего строительство, выполнившего работы, подлежа "]
["щие освидетельствованию",null,null,null,null,null,null,null,null,"Старший мастер Гидротехнического цеха Братского участка"]
[]
[]
["а также иные представители лиц, участвующих в освидетельствовании:",null,null,null,null,null,null,null,null,null,null,null,null,null,null,null,null,null,null,null,null,null,null,"нет"]
[]
[]
[]
["(наименование, должность, фамилия, инициалы, реквизиты документа о представительстве)"]
["произвели осмотр работ, выполненных",null,null,null,null,null,null,null,null,null,null,null,null,"ЗАО"]
[]
["(наименование лица, осуществляющего строительство, выполнившего работы)"]
["и составили настоящий акт о нижеследующем:"]
["1. К освидетельствованию предъявлены следующие работы",null,null,null,null,null,null,null,null,null,null,null,null,null,null,null,null,null,null,"ОРУ 500 кВ, разъединитель Р-2Т-"]
["570. Устройство котлованов под фундаменты ФМ-1."]
["(наименование скрытых работ)"]
["2. Работы выполнены по проектной документации",null,null,null,null,null,null,null,null,null,null,null,null,null,null,null,null,"по договору №011/02/16, проект 3618-148-"]
["ЭКС, Лист 9."]
["(номер, другие реквизиты чертежа, наименование проектной документации,"]
[]
["сведения о лицах, осуществляющих подготовку раздела  проектной документации)"]
["3. При выполнении работ применены"]
["                                                                                            (наименование строительных материалов,"]
[]
["(изделий) со ссылкой на сертификаты или другие документы, подтверждающие качество)"]
["4. Предъявлены документы, подтверждающие соответствие работ предъявляемым к ним"]
["требованиям:"]
[]
["(исполнительные схемы и чертежи, результаты экспертиз, обследований, лабораторных и иных"]
[]
["испытаний выполненных работ, проведенных в процессе строительного контроля.)"]
["5. Даты:     начала работ:",null,null,null,null,null,null,null,null,"«","12","»      ",null,"июля",null,null,null,null,"2016г."]
["окончания работ:",null,null,null,null,null,null,null,null,"«","13","»      ",null,"июля",null,null,null,null,"2016г."]
[]
["6. Работы выполнены в соответствии с"]
["                                                                                   (указываются наименование, статьи "]
[]
["(пункты) технического регламента (норм и правил), иных нормативных правовых актов,"]
[]
["разделы проектной документации)"]
["7. Разрешается производство последующих работ:",null,null,null,null,null,null,null,null,null,null,null,null,null,null,null,"Демонтаж свай бетонных"]
[]
["(наименование работ,  конструкций, участков сетей инженерно-технического обеспечения)"]
[]
["Дополнительные сведения",null,null,null,null,null,null,null,null,"нет"]
["."]
["Акт составлен в",null,null,null,null,null,2,null,null,null,"экземплярах."]
[]
["Приложения:"]
[]
[{"$f":"F95","v":0}]
[]
["Представитель застройщика или заказчика",null,null,null,null,null,null,null,null,null,null,null,null,null,{"$f":"O53","v":"Инженер "}]
[{"$f":"A54","v":0}]
["(должность, фамилия, инициалы, подпись)"]
["Представитель лица, осуществляющего строительство",null,null,null,null,null,null,null,null,null,null,null,null,null,null,null,null,null,{"$f":"S58","v":"Начальник Гидротехнического "}]
[{"$f":"A59","v":"цеха Братского участка"}]
["(должность, фамилия, инициалы, подпись)"]
["Представитель лица, осуществляющего строительство, по вопросам строительного контроля"]
[{"$f":"E63","v":"нет"}]
[{"$f":"A64","v":0}]
["(должность, фамилия, инициалы, подпись)"]
["Представитель лица, осуществляющего подготовку проектной документации",null,null,null,null,null,null,null,null,null,null,null,null,null,null,null,null,null,null,null,null,null,null,null,null,{"$f":"Z66","v":"нет"}]
[{"$f":"A67","v":0}]
["(должность, фамилия, инициалы, подпись)"]
["Представитель лица, осуществляющего строительство, выполнившего работы, подлежа"]
["щие освидетельствованию",null,null,null,null,null,null,null,null,{"$f":"J70","v":"Старший мастер Гидротехнического цеха Братского участка"}]
[{"$f":"A71","v":0}]
[{"$f":"A72","v":0}]
[null,null,null,null,null,null,null,null,null,"(должность, фамилия, инициалы, подпись)"]
["Представители иных лиц:",null,null,null,null,null,null,null,null,{"$f":"X73","v":"нет"}]
[null,null,null,null,null,null,null,null,null,"                        (должность, фамилия, инициалы, подпись)"]
[{"$f":"A74","v":0}]
["                                                                  (должность, фамилия, инициалы, подпись)"]
[{"$f":"A75","v":0}]
["(должность, фамилия, инициалы, подпись)"]
[{"$f":"A76","v":0}]
["(должность, фамилия, инициалы, подпись)"]

{"sheet":"Демонтаж 1","index":2,"n_rows":146,"n_cols":30,"rows_kept":146,"cut":false,"hidden":false,"merged":[[141,0,141,29],[142,0,142,29],[143,0,143,29],[144,0,144,29],[145,0,145,29],[137,0,137,8],[137,9,137,29],[138,0,139,8],[138,9,138,29],[139,9,139,29],[140,0,140,29],[132,0,132,29],[133,0,133,29],[134,0,134,8],[134,9,134,29],[135,0,135,29],[136,0,136,29],[127,0,127,29],[128,0,128,29],[129,0,129,29],[130,0,130,24],[130,25,130,29],[131,0,131,29],[122,0,122,29],[123,0,123,17],[123,18,123,29],[124,0,124,29],[125,0,125,29],[126,0,126,29],[117,0,117,29],[118,0,118,29],[119,0,119,29],[120,0,120,13],[120,14,120,29],[121,0,121,29],[114,0,114,5],[114,6,114,9],[114,10,114,29],[115,0,115,29],[116,0,116,4],[116,5,116,29],[109,0,109,29],[110,0,110,29],[111,0,111,29],[112,0,112,8],[112,9,112,29],[113,0,113,29],[103,0,103,29],[104,0,104,29],[105,0,105,29],[106,0,106,29],[107,0,107,29],[108,0,108,15],[108,16,108,29],[100,0,100,7],[100,13,100,16],[100,18,100,20],[101,0,101,29],[102,0,102,14],[102,15,102,29],[95,0,95,29],[96,0,96,29],[97,0,97,29],[98,0,98,29],[99,0,99,7],[99,13,99,16],[99,18,99,20],[90,0,90,29],[91,0,91,29],[92,0,92,29],[93,0,93,29],[94,0,94,4],[94,5,94,29],[85,0,85,29],[86,0,86,29],[87,0,87,29],[88,0,88,29],[89,0,89,12],[89,13,89,29],[81,0,81,18],[81,19,81,29],[82,0,82,29],[83,0,83,29],[84,0,84,16],[84,17,84,29],[76,0,76,29],[77,0,77,12],[77,13,77,29],[78,0,78,29],[79,0,79,29],[80,0,80,29],[71,0,71,29],[72,0,72,22],[72,23,72,29],[73,0,73,29],[74,0,74,29],[75,0,75,29],[66,0,66,29],[67,0,67,29],[68,0,68,29],[69,0,69,8],[69,9,69,29],[70,0,70,29],[62,0,62,3],[62,4,62,29],[63,0,63,29],[64,0,64,29],[65,0,65,24],[65,25,65,29],[57,0,57,17],[57,18,57,29],[58,0,58,29],[59,0,59,29],[60,0,60,29],[61,0,61,29],[53,0,53,29],[54,0,54,29],[55,0,55,19],[55,20,55,29],[56,0,56,19],[56,20,56,29],[49,0,49,29],[50,1,50,6],[50,23,50,26],[50,28,50,29],[51,0,51,29],[52,0,52,13],[52,14,52,29],[43,0,43,29],[44,0,44,29],[45,0,45,29],[46,0,46,29],[47,0,47,29],[48,0,48,29],[38,0,38,29],[39,0,39,7],[39,8,39,29],[40,0,40,29],[41,0,41,29],[42,0,42,29],[32,0,32,29],[33,0,33,29],[34,0,34,29],[35,0,35,29],[36,0,36,29],[37,0,37,29],[27,0,27,29],[28,0,28,29],[29,0,29,29],[30,0,30,29],[31,0,31,19],[31,20,31,29],[22,0,22,29],[23,0,23,12],[23,13,23,29],[24,0,24,29],[25,0,25,29],[26,0,26,29],[0,0,0,29],[17,0,17,8],[17,9,17,29],[18,0,18,29],[19,0,19,29],[20,0,20,29],[21,0,21,29],[13,0,13,11],[13,12,13,29],[14,0,14,29],[15,0,15,29],[16,0,16,29]]}
[{"$f":"CONCATENATE($A$48,\" \",$A$49,\" \",$A$51,\" \",$B$51,\" \",$T$82,\" \",$A$83)","v":"АКТ освидетельствования скрытых работ  № 011/02/16-02 ОРУ 500 кВ, разъединитель Р-2Т- 570. Демонтаж свай бетонных."}]
[null,null,null,null,null,null,null,null,null,null,null,null,null,null,null,null,null,null,null,null,null,null,null,null,null,null,null,null,null," ПРИЛОЖЕНИЕ № 3"]
[null,null,null,null,null,null,null,null,null,null,null,null,null,null,null,null,null,null,null,null,null,null,null,null,null,null,null,null,null,"к Требованиям к составу и порядку ведения исполнительной "]
[null,null,null,null,null,null,null,null,null,null,null,null,null,null,null,null,null,null,null,null,null,null,null,null,null,null,null,null,null,"документации при строительстве, реконструкции, "]
[null,null,null,null,null,null,null,null,null,null,null,null,null,null,null,null,null,null,null,null,null,null,null,null,null,null,null,null,null,"капитальном ремонте объектов капитального строительства "]
[null,null,null,null,null,null,null,null,null,null,null,null,null,null,null,null,null,null,null,null,null,null,null,null,null,null,null,null,null,"и требования, предъявляемые к актам освидетельствования "]
[null,null,null,null,null,null,null,null,null,null,null,null,null,null,null,null,null,null,null,null,null,null,null,null,null,null,null,null,null,"работ, конструкций, участков сетей инженерно-"]
[null,null,null,null,null,null,null,null,null,null,null,null,null,null,null,null,null,null,null,null,null,null,null,null,null,null,null,null,null,"технического обеспечения, утвержденным "]
[null,null,null,null,null,null,null,null,null,null,null,null,null,null,null,null,null,null,null,null,null,null,null,null,null,null,null,null,null,"приказом Федеральной службы по экологическому, "]
[null,null,null,null,null,null,null,null,null,null,null,null,null,null,null,null,null,null,null,null,null,null,null,null,null,null,null,null,null,"технологическому и атомному надзору "]
[null,null,null,null,null,null,null,null,null,null,null,null,null,null,null,null,null,null,null,null,null,null,null,null,null,null,null,null,null,"от  26 декабря 2006 г. № 1128 "]
[]
[]
["Объект капитального строительства",null,null,null,null,null,null,null,null,null,null,null,"Филиал ПАО «Иркутскэнерго» Братская ГЭС."]
["Модернизация ячеек ОРУ-500 кВ с заменой разъединителей 500 кВ на Братской ГЭС"]
["по договору 011/02/16"]
["(наименование, почтовый или строительный адрес объекта капитального строительства)"]
["Застройщик или заказчик",null,null,null,null,null,null,null,null,"Иркутское ПАО энергетики и электрификации "]
["                                                                                    (наименование, номер и дата выдачи свидетельства "]
["текст"]
["о государственной регистрации, ОГРН, ИНН, почтовые реквизиты, телефон/факс – для  юридических лиц"]
["текст"]
["фамилия, имя, отчество, паспортные данные, место проживания, телефон/факс – для физических лиц)"]
["Лицо, осуществляющее строительство",null,null,null,null,null,null,null,null,null,null,null,null,"текст"]
["                                                                                      (наименование, номер и дата выдачи свидетельства"]
["текст"]
["о государственной регистрации, ОГРН, ИНН, почтовые реквизиты, телефон/факс – для  юридических лиц;"]
["текст"]
["фамилия, имя, отчество, паспортные данные, место проживания, телефон/факс – для физических лиц)"]
["текст"]
[]
["Лицо, осуществляющее подготовку проектной документации",null,null,null,null,null,null,null,null,null,null,null,null,null,null,null,null,null,null,null,"нет"]
[]
["(наименование, номер и дата выдачи свидетельства "]
[]
["о государственной регистрации, ОГРН, ИНН, почтовые реквизиты, телефон/факс – для  юридических лиц;"]
[]
["фамилия, имя, отчество, паспортные данные, место проживания, телефон/факс – для физических лиц)"]
["Лицо, осуществляющее строительство, выполнившее работы, подлежащие"]
["освидетельствованию",null,null,null,null,null,null,null,"текст"]
["                                                                         (наименование, номер и дата выдачи свидетельства"]
["текст"]
["о государственной регистрации, ОГРН, ИНН, почтовые реквизиты, телефон/факс – для  юридических лиц; "]
["текст"]
["фамилия, имя, отчество, паспортные данные, место проживания, телефон/факс – для физических лиц)"]
["текст"]
[]
["АКТ"]
["освидетельствования скрытых работ "]
[]
["№","011/02/16-02",null,null,null,null,null,null,null,null,null,null,null,null,null,null,null,null,null,"«",{"$f":"K101","v":"17"},"»   ",null,{"$f":"N101","v":"июля"},null,null,null,null,{"$f":"S101","v":"2016г."}]
[]
["Представитель застройщика или заказчика",null,null,null,null,null,null,null,null,null,null,null,null,null,"Инженер "]
[]
["(должность, фамилия, инициалы, реквизиты документа о представительстве)"]
[]
[]
["Представитель лица, осуществляющего строительство",null,null,null,null,null,null,null,null,null,null,null,null,null,null,null,null,null,"Начальник Гидротехнического "]
["цеха Братского участка"]
[]
["(должность, фамилия, инициалы, реквизиты документа о представительстве)"]
["Представитель лица, осуществляющего строительство, по вопросам строительного"]
["контроля",null,null,null,"нет"]
[]
["(должность, фамилия, инициалы, реквизиты документа о представительстве)"]
["Представитель лица, осуществляющего подготовку проектной документации",null,null,null,null,null,null,null,null,null,null,null,null,null,null,null,null,null,null,null,null,null,null,null,null,"нет"]
[]
["(должность, фамилия, инициалы, реквизиты документа о представительстве)"]
["Представитель лица, осуществляющего строительство, выполнившего работы, подлежа "]
["щие освидетельствованию",null,null,null,null,null,null,null,null,"Старший мастер Гидротехнического цеха Братского участка"]
[]
[]
["а также иные представители лиц, участвующих в освидетельствовании:",null,null,null,null,null,null,null,null,null,null,null,null,null,null,null,null,null,null,null,null,null,null,"нет"]
[]
[]
[]
["(наименование, должность, фамилия, инициалы, реквизиты документа о представительстве)"]
["произвели осмотр работ, выполненных",null,null,null,null,null,null,null,null,null,null,null,null,"ЗАО"]
[]
["(наименование лица, осуществляющего строительство, выполнившего работы)"]
["и составили настоящий акт о нижеследующем:"]
["1. К освидетельствованию предъявлены следующие работы",null,null,null,null,null,null,null,null,null,null,null,null,null,null,null,null,null,null,"ОРУ 500 кВ, разъединитель Р-2Т-"]
["570. Демонтаж свай бетонных."]
["(наименование скрытых работ)"]
["2. Работы выполнены по проектной документации",null,null,null,null,null,null,null,null,null,null,null,null,null,null,null,null,"по договору №011/02/16, проект 3618-148-"]
["ЭКС, Лист 9."]
["(номер, другие реквизиты чертежа, наименование проектной документации,"]
[]
["сведения о лицах, осуществляющих подготовку раздела  проектной документации)"]
["3. При выполнении работ применены"]
["                                                                                            (наименование строительных материалов,"]
[]
["(изделий) со ссылкой на сертификаты или другие документы, подтверждающие качество)"]
["4. Предъявлены документы, подтверждающие соответствие работ предъявляемым к ним"]
["требованиям:"]
[]
["(исполнительные схемы и чертежи, результаты экспертиз, обследований, лабораторных и иных"]
[]
["испытаний выполненных работ, проведенных в процессе строительного контроля.)"]
["5. Даты:     начала работ:",null,null,null,null,null,null,null,null,"«","14","»      ",null,"июля",null,null,null,null,"2016г."]
["окончания работ:",null,null,null,null,null,null,null,null,"«","17","»      ",null,"июля",null,null,null,null,"2016г."]
[]
["6. Работы выполнены в соответствии с"]
["                                                                                   (указываются наименование, статьи "]
[]
["(пункты) технического регламента (норм и правил), иных нормативных правовых актов,"]
[]
["разделы проектной документации)"]
["7. Разрешается производство последующих работ:",null,null,null,null,null,null,null,null,null,null,null,null,null,null,null,"Устройство подстилающего слоя из ПГС"]
[]
["(наименование работ,  конструкций, участков сетей инженерно-технического обеспечения)"]
[]
["Дополнительные сведения",null,null,null,null,null,null,null,null,"нет"]
["."]
["Акт составлен в",null,null,null,null,null,2,null,null,null,"экземплярах."]
[]
["Приложения:"]
[]
[]
[]
["Представитель застройщика или заказчика",null,null,null,null,null,null,null,null,null,null,null,null,null,{"$f":"O53","v":"Инженер "}]
[{"$f":"A54","v":0}]
["(должность, фамилия, инициалы, подпись)"]
["Представитель лица, осуществляющего строительство",null,null,null,null,null,null,null,null,null,null,null,null,null,null,null,null,null,{"$f":"S58","v":"Начальник Гидротехнического "}]
[{"$f":"A59","v":"цеха Братского участка"}]
["(должность, фамилия, инициалы, подпись)"]
["Представитель лица, осуществляющего строительство, по вопросам строительного контроля"]
[{"$f":"E63","v":"нет"}]
[{"$f":"A64","v":0}]
["(должность, фамилия, инициалы, подпись)"]
["Представитель лица, осуществляющего подготовку проектной документации",null,null,null,null,null,null,null,null,null,null,null,null,null,null,null,null,null,null,null,null,null,null,null,null,{"$f":"Z66","v":"нет"}]
[{"$f":"A67","v":0}]
["(должность, фамилия, инициалы, подпись)"]
["Представитель лица, осуществляющего строительство, выполнившего работы, подлежа"]
["щие освидетельствованию",null,null,null,null,null,null,null,null,{"$f":"J70","v":"Старший мастер Гидротехнического цеха Братского участка"}]
[{"$f":"A71","v":0}]
[{"$f":"A72","v":0}]
[null,null,null,null,null,null,null,null,null,"(должность, фамилия, инициалы, подпись)"]
["Представители иных лиц:",null,null,null,null,null,null,null,null,{"$f":"X73","v":"нет"}]
[null,null,null,null,null,null,null,null,null,"                        (должность, фамилия, инициалы, подпись)"]
[{"$f":"A74","v":0}]
["                                                                  (должность, фамилия, инициалы, подпись)"]
[{"$f":"A75","v":0}]
["(должность, фамилия, инициалы, подпись)"]
[{"$f":"A76","v":0}]
["(должность, фамилия, инициалы, подпись)"]

{"sheet":"ПГС 1","index":3,"n_rows":146,"n_cols":30,"rows_kept":146,"cut":false,"hidden":false,"merged":[[141,0,141,29],[142,0,142,29],[143,0,143,29],[144,0,144,29],[145,0,145,29],[137,0,137,8],[137,9,137,29],[138,0,139,8],[138,9,138,29],[139,9,139,29],[140,0,140,29],[132,0,132,29],[133,0,133,29],[134,0,134,8],[134,9,134,29],[135,0,135,29],[136,0,136,29],[127,0,127,29],[128,0,128,29],[129,0,129,29],[130,0,130,24],[130,25,130,29],[131,0,131,29],[122,0,122,29],[123,0,123,17],[123,18,123,29],[124,0,124,29],[125,0,125,29],[126,0,126,29],[117,0,117,29],[118,0,118,29],[119,0,119,29],[120,0,120,13],[120,14,120,29],[121,0,121,29],[114,0,114,5],[114,6,114,9],[114,10,114,29],[115,0,115,29],[116,0,116,4],[116,5,116,29],[109,0,109,29],[110,0,110,29],[111,0,111,29],[112,0,112,8],[112,9,112,29],[113,0,113,29],[103,0,103,29],[104,0,104,29],[105,0,105,29],[106,0,106,29],[107,0,107,29],[108,0,108,15],[108,16,108,29],[100,0,100,7],[100,13,100,16],[100,18,100,20],[101,0,101,29],[102,0,102,14],[102,15,102,29],[95,0,95,29],[96,0,96,29],[97,0,97,29],[98,0,98,29],[99,0,99,7],[99,13,99,16],[99,18,99,20],[90,0,90,29],[91,0,91,29],[92,0,92,29],[93,0,93,29],[94,0,94,4],[94,5,94,29],[85,0,85,29],[86,0,86,29],[87,0,87,29],[88,0,88,29],[89,0,89,12],[89,13,89,29],[81,0,81,18],[81,19,81,29],[82,0,82,29],[83,0,83,29],[84,0,84,16],[84,17,84,29],[76,0,76,29],[77,0,77,12],[77,13,77,29],[78,0,78,29],[79,0,79,29],[80,0,80,29],[71,0,71,29],[72,0,72,22],[72,23,72,29],[73,0,73,29],[74,0,74,29],[75,0,75,29],[66,0,66,29],[67,0,67,29],[68,0,68,29],[69,0,69,8],[69,9,69,29],[70,0,70,29],[62,0,62,3],[62,4,62,29],[63,0,63,29],[64,0,64,29],[65,0,65,24],[65,25,65,29],[57,0,57,17],[57,18,57,29],[58,0,58,29],[59,0,59,29],[60,0,60,29],[61,0,61,29],[53,0,53,29],[54,0,54,29],[55,0,55,19],[55,20,55,29],[56,0,56,19],[56,20,56,29],[49,0,49,29],[50,1,50,6],[50,23,50,26],[50,28,50,29],[51,0,51,29],[52,0,52,13],[52,14,52,29],[43,0,43,29],[44,0,44,29],[45,0,45,29],[46,0,46,29],[47,0,47,29],[48,0,48,29],[38,0,38,29],[39,0,39,7],[39,8,39,29],[40,0,40,29],[41,0,41,29],[42,0,42,29],[32,0,32,29],[33,0,33,29],[34,0,34,29],[35,0,35,29],[36,0,36,29],[37,0,37,29],[27,0,27,29],[28,0,28,29],[29,0,29,29],[30,0,30,29],[31,0,31,19],[31,20,31,29],[22,0,22,29],[23,0,23,12],[23,13,23,29],[24,0,24,29],[25,0,25,29],[26,0,26,29],[0,0,0,29],[17,0,17,8],[17,9,17,29],[18,0,18,29],[19,0,19,29],[20,0,20,29],[21,0,21,29],[13,0,13,11],[13,12,13,29],[14,0,14,29],[15,0,15,29],[16,0,16,29]]}
[{"$f":"CONCATENATE($A$48,\" \",$A$49,\" \",$A$51,\" \",$B$51,\" \",$T$82,\" \",$A$83)","v":"АКТ освидетельствования скрытых работ  № 011/02/16-03 ОРУ 500 кВ, разъединитель Р-2Т- 570. Устройство подстилающего слоя из ПГС."}]
[null,null,null,null,null,null,null,null,null,null,null,null,null,null,null,null,null,null,null,null,null,null,null,null,null,null,null,null,null," ПРИЛОЖЕНИЕ № 3"]
[null,null,null,null,null,null,null,null,null,null,null,null,null,null,null,null,null,null,null,null,null,null,null,null,null,null,null,null,null,"к Требованиям к составу и порядку ведения исполнительной "]
[null,null,null,null,null,null,null,null,null,null,null,null,null,null,null,null,null,null,null,null,null,null,null,null,null,null,null,null,null,"документации при строительстве, реконструкции, "]
[null,null,null,null,null,null,null,null,null,null,null,null,null,null,null,null,null,null,null,null,null,null,null,null,null,null,null,null,null,"капитальном ремонте объектов капитального строительства "]
[null,null,null,null,null,null,null,null,null,null,null,null,null,null,null,null,null,null,null,null,null,null,null,null,null,null,null,null,null,"и требования, предъявляемые к актам освидетельствования "]
[null,null,null,null,null,null,null,null,null,null,null,null,null,null,null,null,null,null,null,null,null,null,null,null,null,null,null,null,null,"работ, конструкций, участков сетей инженерно-"]
[null,null,null,null,null,null,null,null,null,null,null,null,null,null,null,null,null,null,null,null,null,null,null,null,null,null,null,null,null,"технического обеспечения, утвержденным "]
[null,null,null,null,null,null,null,null,null,null,null,null,null,null,null,null,null,null,null,null,null,null,null,null,null,null,null,null,null,"приказом Федеральной службы по экологическому, "]
[null,null,null,null,null,null,null,null,null,null,null,null,null,null,null,null,null,null,null,null,null,null,null,null,null,null,null,null,null,"технологическому и атомному надзору "]
[null,null,null,null,null,null,null,null,null,null,null,null,null,null,null,null,null,null,null,null,null,null,null,null,null,null,null,null,null,"от  26 декабря 2006 г. № 1128 "]
[]
[]
["Объект капитального строительства",null,null,null,null,null,null,null,null,null,null,null,"Филиал ПАО «Иркутскэнерго» Братская ГЭС."]
["Модернизация ячеек ОРУ-500 кВ с заменой разъединителей 500 кВ на Братской ГЭС"]
["по договору 011/02/16"]
["(наименование, почтовый или строительный адрес объекта капитального строительства)"]
["Застройщик или заказчик",null,null,null,null,null,null,null,null,"Иркутское ПАО энергетики и электрификации "]
["                                                                                    (наименование, номер и дата выдачи свидетельства "]
["текст"]
["о государственной регистрации, ОГРН, ИНН, почтовые реквизиты, телефон/факс – для  юридических лиц"]
["текст"]
["фамилия, имя, отчество, паспортные данные, место проживания, телефон/факс – для физических лиц)"]
["Лицо, осуществляющее строительство",null,null,null,null,null,null,null,null,null,null,null,null,"текст"]
["                                                                                      (наименование, номер и дата выдачи свидетельства"]
["текст"]
["о государственной регистрации, ОГРН, ИНН, почтовые реквизиты, телефон/факс – для  юридических лиц;"]
["текст"]
["фамилия, имя, отчество, паспортные данные, место проживания, телефон/факс – для физических лиц)"]
["текст"]
[]
["Лицо, осуществляющее подготовку проектной документации",null,null,null,null,null,null,null,null,null,null,null,null,null,null,null,null,null,null,null,"нет"]
[]
["(наименование, номер и дата выдачи свидетельства "]
[]
["о государственной регистрации, ОГРН, ИНН, почтовые реквизиты, телефон/факс – для  юридических лиц;"]
[]
["фамилия, имя, отчество, паспортные данные, место проживания, телефон/факс – для физических лиц)"]
["Лицо, осуществляющее строительство, выполнившее работы, подлежащие"]
["освидетельствованию",null,null,null,null,null,null,null,"текст"]
["                                                                         (наименование, номер и дата выдачи свидетельства"]
["текст"]
["о государственной регистрации, ОГРН, ИНН, почтовые реквизиты, телефон/факс – для  юридических лиц; "]
["текст"]
["фамилия, имя, отчество, паспортные данные, место проживания, телефон/факс – для физических лиц)"]
["текст"]
[]
["АКТ"]
["освидетельствования скрытых работ "]
[]
["№","011/02/16-03",null,null,null,null,null,null,null,null,null,null,null,null,null,null,null,null,null,"«",{"$f":"K101","v":"20"},"»   ",null,{"$f":"N101","v":"июля"},null,null,null,null,{"$f":"S101","v":"2016г."}]
[]
["Представитель застройщика или заказчика",null,null,null,null,null,null,null,null,null,null,null,null,null,"Инженер "]
[]
["(должность, фамилия, инициалы, реквизиты документа о представительстве)"]
[]
[]
["Представитель лица, осуществляющего строительство",null,null,null,null,null,null,null,null,null,null,null,null,null,null,null,null,null,"Начальник Гидротехнического "]
["цеха Братского участка"]
[]
["(должность, фамилия, инициалы, реквизиты документа о представительстве)"]
["Представитель лица, осуществляющего строительство, по вопросам строительного"]
["контроля",null,null,null,"нет"]
[]
["(должность, фамилия, инициалы, реквизиты документа о представительстве)"]
["Представитель лица, осуществляющего подготовку проектной документации",null,null,null,null,null,null,null,null,null,null,null,null,null,null,null,null,null,null,null,null,null,null,null,null,"нет"]
[]
["(должность, фамилия, инициалы, реквизиты документа о представительстве)"]
["Представитель лица, осуществляющего строительство, выполнившего работы, подлежа "]
["щие освидетельствованию",null,null,null,null,null,null,null,null,"Старший мастер Гидротехнического цеха Братского участка"]
[]
[]
["а также иные представители лиц, участвующих в освидетельствовании:",null,null,null,null,null,null,null,null,null,null,null,null,null,null,null,null,null,null,null,null,null,null,"нет"]
[]
[]
[]
["(наименование, должность, фамилия, инициалы, реквизиты документа о представительстве)"]
["произвели осмотр работ, выполненных",null,null,null,null,null,null,null,null,null,null,null,null,"ЗАО"]
[]
["(наименование лица, осуществляющего строительство, выполнившего работы)"]
["и составили настоящий акт о нижеследующем:"]
["1. К освидетельствованию предъявлены следующие работы",null,null,null,null,null,null,null,null,null,null,null,null,null,null,null,null,null,null,"ОРУ 500 кВ, разъединитель Р-2Т-"]
["570. Устройство подстилающего слоя из ПГС."]
["(наименование скрытых работ)"]
["2. Работы выполнены по проектной документации",null,null,null,null,null,null,null,null,null,null,null,null,null,null,null,null,"по договору №011/02/16, проект 3618-148-"]
["ЭКС, Лист 9."]
["(номер, другие реквизиты чертежа, наименование проектной документации,"]
[]
["сведения о лицах, осуществляющих подготовку раздела  проектной документации)"]
["3. При выполнении работ применены",null,null,null,null,null,null,null,null,null,null,null,null,"ПГС фр. 20-40"]
["                                                                                            (наименование строительных материалов,"]
[]
["(изделий) со ссылкой на сертификаты или другие документы, подтверждающие качество)"]
["4. Предъявлены документы, подтверждающие соответствие работ предъявляемым к ним"]
["требованиям:"]
[]
["(исполнительные схемы и чертежи, результаты экспертиз, обследований, лабораторных и иных"]
[]
["испытаний выполненных работ, проведенных в процессе строительного контроля.)"]
["5. Даты:     начала работ:",null,null,null,null,null,null,null,null,"«","20","»      ",null,"июля",null,null,null,null,"2016г."]
["окончания работ:",null,null,null,null,null,null,null,null,"«","20","»      ",null,"июля",null,null,null,null,"2016г."]
[]
["6. Работы выполнены в соответствии с"]
["                                                                                   (указываются наименование, статьи "]
[]
["(пункты) технического регламента (норм и правил), иных нормативных правовых актов,"]
[]
["разделы проектной документации)"]
["7. Разрешается производство последующих работ:",null,null,null,null,null,null,null,null,null,null,null,null,null,null,null,"Устройство бетонного основания "]
["(подбетонки)"]
["(наименование работ,  конструкций, участков сетей инженерно-технического обеспечения)"]
[]
["Дополнительные сведения",null,null,null,null,null,null,null,null,"нет"]
["."]
["Акт составлен в",null,null,null,null,null,2,null,null,null,"экземплярах."]
[]
["Приложения:"]
[]
[{"$f":"F95","v":0}]
[]
["Представитель застройщика или заказчика",null,null,null,null,null,null,null,null,null,null,null,null,null,{"$f":"O53","v":"Инженер "}]
[{"$f":"A54","v":0}]
["(должность, фамилия, инициалы, подпись)"]
["Представитель лица, осуществляющего строительство",null,null,null,null,null,null,null,null,null,null,null,null,null,null,null,null,null,{"$f":"S58","v":"Начальник Гидротехнического "}]
[{"$f":"A59","v":"цеха Братского участка"}]
["(должность, фамилия, инициалы, подпись)"]
["Представитель лица, осуществляющего строительство, по вопросам строительного контроля"]
[{"$f":"E63","v":"нет"}]
[{"$f":"A64","v":0}]
["(должность, фамилия, инициалы, подпись)"]
["Представитель лица, осуществляющего подготовку проектной документации",null,null,null,null,null,null,null,null,null,null,null,null,null,null,null,null,null,null,null,null,null,null,null,null,{"$f":"Z66","v":"нет"}]
[{"$f":"A67","v":0}]
["(должность, фамилия, инициалы, подпись)"]
["Представитель лица, осуществляющего строительство, выполнившего работы, подлежа"]
["щие освидетельствованию",null,null,null,null,null,null,null,null,{"$f":"J70","v":"Старший мастер Гидротехнического цеха Братского участка"}]
[{"$f":"A71","v":0}]
[{"$f":"A72","v":0}]
[null,null,null,null,null,null,null,null,null,"(должность, фамилия, инициалы, подпись)"]
["Представители иных лиц:",null,null,null,null,null,null,null,null,{"$f":"X73","v":"нет"}]
[null,null,null,null,null,null,null,null,null,"                        (должность, фамилия, инициалы, подпись)"]
[{"$f":"A74","v":0}]
["                                                                  (должность, фамилия, инициалы, подпись)"]
[{"$f":"A75","v":0}]
["(должность, фамилия, инициалы, подпись)"]
[{"$f":"A76","v":0}]
["(должность, фамилия, инициалы, подпись)"]

{"sheet":"Котлован 2","index":4,"n_rows":146,"n_cols":30,"rows_kept":146,"cut":false,"hidden":false,"merged":[[141,0,141,29],[142,0,142,29],[143,0,143,29],[144,0,144,29],[145,0,145,29],[137,0,137,8],[137,9,137,29],[138,0,139,8],[138,9,138,29],[139,9,139,29],[140,0,140,29],[132,0,132,29],[133,0,133,29],[134,0,134,8],[134,9,134,29],[135,0,135,29],[136,0,136,29],[127,0,127,29],[128,0,128,29],[129,0,129,29],[130,0,130,24],[130,25,130,29],[131,0,131,29],[122,0,122,29],[123,0,123,17],[123,18,123,29],[124,0,124,29],[125,0,125,29],[126,0,126,29],[117,0,117,29],[118,0,118,29],[119,0,119,29],[120,0,120,13],[120,14,120,29],[121,0,121,29],[114,0,114,5],[114,6,114,9],[114,10,114,29],[115,0,115,29],[116,0,116,4],[116,5,116,29],[109,0,109,29],[110,0,110,29],[111,0,111,29],[112,0,112,8],[112,9,112,29],[113,0,113,29],[103,0,103,29],[104,0,104,29],[105,0,105,29],[106,0,106,29],[107,0,107,29],[108,0,108,15],[108,16,108,29],[100,0,100,7],[100,13,100,16],[100,18,100,20],[101,0,101,29],[102,0,102,14],[102,15,102,29],[95,0,95,29],[96,0,96,29],[97,0,97,29],[98,0,98,29],[99,0,99,7],[99,13,99,16],[99,18,99,20],[90,0,90,29],[91,0,91,29],[92,0,92,29],[93,0,93,29],[94,0,94,4],[94,5,94,29],[85,0,85,29],[86,0,86,29],[87,0,87,29],[88,0,88,29],[89,0,89,12],[89,13,89,29],[81,0,81,18],[81,19,81,29],[82,0,82,29],[83,0,83,29],[84,0,84,16],[84,17,84,29],[76,0,76,29],[77,0,77,12],[77,13,77,29],[78,0,78,29],[79,0,79,29],[80,0,80,29],[71,0,71,29],[72,0,72,22],[72,23,72,29],[73,0,73,29],[74,0,74,29],[75,0,75,29],[66,0,66,29],[67,0,67,29],[68,0,68,29],[69,0,69,8],[69,9,69,29],[70,0,70,29],[62,0,62,3],[62,4,62,29],[63,0,63,29],[64,0,64,29],[65,0,65,24],[65,25,65,29],[57,0,57,17],[57,18,57,29],[58,0,58,29],[59,0,59,29],[60,0,60,29],[61,0,61,29],[53,0,53,29],[54,0,54,29],[55,0,55,19],[55,20,55,29],[56,0,56,19],[56,20,56,29],[49,0,49,29],[50,1,50,6],[50,23,50,26],[50,28,50,29],[51,0,51,29],[52,0,52,13],[52,14,52,29],[43,0,43,29],[44,0,44,29],[45,0,45,29],[46,0,46,29],[47,0,47,29],[48,0,48,29],[38,0,38,29],[39,0,39,7],[39,8,39,29],[40,0,40,29],[41,0,41,29],[42,0,42,29],[32,0,32,29],[33,0,33,29],[34,0,34,29],[35,0,35,29],[36,0,36,29],[37,0,37,29],[27,0,27,29],[28,0,28,29],[29,0,29,29],[30,0,30,29],[31,0,31,19],[31,20,31,29],[22,0,22,29],[23,0,23,12],[23,13,23,29],[24,0,24,29],[25,0,25,29],[26,0,26,29],[0,0,0,29],[17,0,17,8],[17,9,17,29],[18,0,18,29],[19,0,19,29],[20,0,20,29],[21,0,21,29],[13,0,13,11],[13,12,13,29],[14,0,14,29],[15,0,15,29],[16,0,16,29]]}
[{"$f":"CONCATENATE($A$48,\" \",$A$49,\" \",$A$51,\" \",$B$51,\" \",$T$82,\" \",$A$83)","v":"АКТ освидетельствования скрытых работ  № 011/02/16-06 ОРУ 500 кВ, разъединитель Р-2Т. Устройство котлованов под фундаменты ФМ-1."}]
[null,null,null,null,null,null,null,null,null,null,null,null,null,null,null,null,null,null,null,null,null,null,null,null,null,null,null,null,null," ПРИЛОЖЕНИЕ № 3"]
[null,null,null,null,null,null,null,null,null,null,null,null,null,null,null,null,null,null,null,null,null,null,null,null,null,null,null,null,null,"к Требованиям к составу и порядку ведения исполнительной "]
[null,null,null,null,null,null,null,null,null,null,null,null,null,null,null,null,null,null,null,null,null,null,null,null,null,null,null,null,null,"документации при строительстве, реконструкции, "]
[null,null,null,null,null,null,null,null,null,null,null,null,null,null,null,null,null,null,null,null,null,null,null,null,null,null,null,null,null,"капитальном ремонте объектов капитального строительства "]
[null,null,null,null,null,null,null,null,null,null,null,null,null,null,null,null,null,null,null,null,null,null,null,null,null,null,null,null,null,"и требования, предъявляемые к актам освидетельствования "]
[null,null,null,null,null,null,null,null,null,null,null,null,null,null,null,null,null,null,null,null,null,null,null,null,null,null,null,null,null,"работ, конструкций, участков сетей инженерно-"]
[null,null,null,null,null,null,null,null,null,null,null,null,null,null,null,null,null,null,null,null,null,null,null,null,null,null,null,null,null,"технического обеспечения, утвержденным "]
[null,null,null,null,null,null,null,null,null,null,null,null,null,null,null,null,null,null,null,null,null,null,null,null,null,null,null,null,null,"приказом Федеральной службы по экологическому, "]
[null,null,null,null,null,null,null,null,null,null,null,null,null,null,null,null,null,null,null,null,null,null,null,null,null,null,null,null,null,"технологическому и атомному надзору "]
[null,null,null,null,null,null,null,null,null,null,null,null,null,null,null,null,null,null,null,null,null,null,null,null,null,null,null,null,null,"от  26 декабря 2006 г. № 1128 "]
[]
[]
["Объект капитального строительства",null,null,null,null,null,null,null,null,null,null,null,"Филиал ПАО «Иркутскэнерго» Братская ГЭС."]
["Модернизация ячеек ОРУ-500 кВ с заменой разъединителей 500 кВ на Братской ГЭС"]
["по договору 011/02/16"]
["(наименование, почтовый или строительный адрес объекта капитального строительства)"]
["Застройщик или заказчик",null,null,null,null,null,null,null,null,"Иркутское ПАО энергетики и электрификации "]
["                                                                                    (наименование, номер и дата выдачи свидетельства "]
["текст"]
["о государственной регистрации, ОГРН, ИНН, почтовые реквизиты, телефон/факс – для  юридических лиц"]
["текст"]
["фамилия, имя, отчество, паспортные данные, место проживания, телефон/факс – для физических лиц)"]
["Лицо, осуществляющее строительство",null,null,null,null,null,null,null,null,null,null,null,null,"текст"]
["                                                                                      (наименование, номер и дата выдачи свидетельства"]
["текст"]
["о государственной регистрации, ОГРН, ИНН, почтовые реквизиты, телефон/факс – для  юридических лиц;"]
["текст"]
["фамилия, имя, отчество, паспортные данные, место проживания, телефон/факс – для физических лиц)"]
["текст"]
[]
["Лицо, осуществляющее подготовку проектной документации",null,null,null,null,null,null,null,null,null,null,null,null,null,null,null,null,null,null,null,"нет"]
[]
["(наименование, номер и дата выдачи свидетельства "]
[]
["о государственной регистрации, ОГРН, ИНН, почтовые реквизиты, телефон/факс – для  юридических лиц;"]
[]
["фамилия, имя, отчество, паспортные данные, место проживания, телефон/факс – для физических лиц)"]
["Лицо, осуществляющее строительство, выполнившее работы, подлежащие"]
["освидетельствованию",null,null,null,null,null,null,null,"текст"]
["                                                                         (наименование, номер и дата выдачи свидетельства"]
["текст"]
["о государственной регистрации, ОГРН, ИНН, почтовые реквизиты, телефон/факс – для  юридических лиц; "]
["текст"]
["фамилия, имя, отчество, паспортные данные, место проживания, телефон/факс – для физических лиц)"]
["текст"]
[]
["АКТ"]
["освидетельствования скрытых работ "]
[]
["№","011/02/16-06",null,null,null,null,null,null,null,null,null,null,null,null,null,null,null,null,null,"«",{"$f":"K101","v":"02"},"»   ",null,{"$f":"N101","v":"августа"},null,null,null,null,{"$f":"S101","v":"2016г."}]
[]
["Представитель застройщика или заказчика",null,null,null,null,null,null,null,null,null,null,null,null,null,"Инженер "]
[]
["(должность, фамилия, инициалы, реквизиты документа о представительстве)"]
[]
[]
["Представитель лица, осуществляющего строительство",null,null,null,null,null,null,null,null,null,null,null,null,null,null,null,null,null,"Начальник Гидротехнического "]
["цеха Братского участка"]
[]
["(должность, фамилия, инициалы, реквизиты документа о представительстве)"]
["Представитель лица, осуществляющего строительство, по вопросам строительного"]
["контроля",null,null,null,"нет"]
[]
["(должность, фамилия, инициалы, реквизиты документа о представительстве)"]
["Представитель лица, осуществляющего подготовку проектной документации",null,null,null,null,null,null,null,null,null,null,null,null,null,null,null,null,null,null,null,null,null,null,null,null,"нет"]
[]
["(должность, фамилия, инициалы, реквизиты документа о представительстве)"]
["Представитель лица, осуществляющего строительство, выполнившего работы, подлежа "]
["щие освидетельствованию",null,null,null,null,null,null,null,null,"Старший мастер Гидротехнического цеха Братского участка"]
[]
[]
["а также иные представители лиц, участвующих в освидетельствовании:",null,null,null,null,null,null,null,null,null,null,null,null,null,null,null,null,null,null,null,null,null,null,"нет"]
[]
[]
[]
["(наименование, должность, фамилия, инициалы, реквизиты документа о представительстве)"]
["произвели осмотр работ, выполненных",null,null,null,null,null,null,null,null,null,null,null,null,"ЗАО"]
[]
["(наименование лица, осуществляющего строительство, выполнившего работы)"]
["и составили настоящий акт о нижеследующем:"]
["1. К освидетельствованию предъявлены следующие работы",null,null,null,null,null,null,null,null,null,null,null,null,null,null,null,null,null,null,"ОРУ 500 кВ, разъединитель Р-2Т."]
["Устройство котлованов под фундаменты ФМ-1."]
["(наименование скрытых работ)"]
["2. Работы выполнены по проектной документации",null,null,null,null,null,null,null,null,null,null,null,null,null,null,null,null,"по договору №011/02/16, проект 3618-148-"]
["ЭКС, Лист 9."]
["(номер, другие реквизиты чертежа, наименование проектной документации,"]
[]
["сведения о лицах, осуществляющих подготовку раздела  проектной документации)"]
["3. При выполнении работ применены"]
["                                                                                            (наименование строительных материалов,"]
[]
["(изделий) со ссылкой на сертификаты или другие документы, подтверждающие качество)"]
["4. Предъявлены документы, подтверждающие соответствие работ предъявляемым к ним"]
["требованиям:"]
[]
["(исполнительные схемы и чертежи, результаты экспертиз, обследований, лабораторных и иных"]
[]
["испытаний выполненных работ, проведенных в процессе строительного контроля.)"]
["5. Даты:     начала работ:",null,null,null,null,null,null,null,null,"«","01","»      ",null,"августа",null,null,null,null,"2016г."]
["окончания работ:",null,null,null,null,null,null,null,null,"«","02","»      ",null,"августа",null,null,null,null,"2016г."]
[]
["6. Работы выполнены в соответствии с"]
["                                                                                   (указываются наименование, статьи "]
[]
["(пункты) технического регламента (норм и правил), иных нормативных правовых актов,"]
[]
["разделы проектной документации)"]
["7. Разрешается производство последующих работ:",null,null,null,null,null,null,null,null,null,null,null,null,null,null,null,"Демонтаж свай бетонных"]
[]
["(наименование работ,  конструкций, участков сетей инженерно-технического обеспечения)"]
[]
["Дополнительные сведения",null,null,null,null,null,null,null,null,"нет"]
["."]
["Акт составлен в",null,null,null,null,null,2,null,null,null,"экземплярах."]
[]
["Приложения:"]
[]
[{"$f":"F95","v":0}]
[]
["Представитель застройщика или заказчика",null,null,null,null,null,null,null,null,null,null,null,null,null,{"$f":"O53","v":"Инженер "}]
[{"$f":"A54","v":0}]
["(должность, фамилия, инициалы, подпись)"]
["Представитель лица, осуществляющего строительство",null,null,null,null,null,null,null,null,null,null,null,null,null,null,null,null,null,{"$f":"S58","v":"Начальник Гидротехнического "}]
[{"$f":"A59","v":"цеха Братского участка"}]
["(должность, фамилия, инициалы, подпись)"]
["Представитель лица, осуществляющего строительство, по вопросам строительного контроля"]
[{"$f":"E63","v":"нет"}]
[{"$f":"A64","v":0}]
["(должность, фамилия, инициалы, подпись)"]
["Представитель лица, осуществляющего подготовку проектной документации",null,null,null,null,null,null,null,null,null,null,null,null,null,null,null,null,null,null,null,null,null,null,null,null,{"$f":"Z66","v":"нет"}]
[{"$f":"A67","v":0}]
["(должность, фамилия, инициалы, подпись)"]
["Представитель лица, осуществляющего строительство, выполнившего работы, подлежа"]
["щие освидетельствованию",null,null,null,null,null,null,null,null,{"$f":"J70","v":"Старший мастер Гидротехнического цеха Братского участка"}]
[{"$f":"A71","v":0}]
[{"$f":"A72","v":0}]
[null,null,null,null,null,null,null,null,null,"(должность, фамилия, инициалы, подпись)"]
["Представители иных лиц:",null,null,null,null,null,null,null,null,{"$f":"X73","v":"нет"}]
[null,null,null,null,null,null,null,null,null,"                        (должность, фамилия, инициалы, подпись)"]
[{"$f":"A74","v":0}]
["                                                                  (должность, фамилия, инициалы, подпись)"]
[{"$f":"A75","v":0}]
["(должность, фамилия, инициалы, подпись)"]
[{"$f":"A76","v":0}]
["(должность, фамилия, инициалы, подпись)"]